Cogmind - Beta 14 @@@ ROGUE MODE // 2024.12.15 @ 19:44:22 Player: Darsidian Result: Destroyed by G-47 Trooper with Particle Gun Performance ------------- Evolutions (2) 1000 Regions Visited (7) 1400 Robots Destroyed (172) 860 Value Destroyed (5372) 5372 Prototype IDs (13) 260 Alien Tech Used (0) 0 Bonus (2124) 2124 TOTAL SCORE: 11016 Bonus ------- High Alert Combat Kills 1162 Follower Combat Kills 289 Entered Garrisons 200 Used RIF Installer 500 Friendly Fire -27 Cogmind --------- Core Integrity 0/550 Matter 300/300 Energy 310/310 System Corruption 15% Temperature Cool (18) Movement Treading (480) Ox4 Location -8/Storage Parts ------- > --- POWER (1) -------- Heavy Deuterium Engine > --- PROPULSION (3) --- Light Treads > --- UTILITY (5) ------ Huge Storage Unit Target Analyzer > --- WEAPON (2) ------- (None) > --- INVENTORY (25) --- Light Nuclear Core Heavy Deuterium Engine Improved Heat Sink Medium Battery (150) High-capacity Matter Pod (200) ECM Suite Hardlight Generator System Shield Relay Coupler [NC] (26) Relay Coupler [NC] (22) Relay Coupler [Grunt] (27) Relay Coupler [Hunter] (14) Relay Coupler [Hunter] (14) Relay Coupler [Behemoth] (10) Beamcaster Improved Assault Rifle High-powered Shotgun Gauss Cannon Rocket Launcher Plasma Cutter Katana Peak State ------------ > --- POWER ------------ Heavy Deuterium Engine > --- PROPULSION ------- Wheel Wheel Compact Wheel > --- UTILITY ---------- Huge Storage Unit Improved Targeting Computer Target Analyzer Relay Coupler [Sentry] Relay Coupler [Hunter] > --- WEAPON ----------- Advanced Beam Cannon Advanced Beam Cannon > --- INVENTORY -------- Heavy Deuterium Engine Heavy Deuterium Engine Light Treads Wheel Improved Heat Sink Medium Battery Medium Matter Pod Seismic Detector ECM Suite Hardlight Generator Hardlight Generator System Shield Relay Coupler [NC] Relay Coupler [Swarmer] Relay Coupler [Sentry] Improved Assault Rifle Improved Assault Rifle High-powered Shotgun Gauss Cannon Shock Bomb Launcher Grenade Launcher Grenade Launcher Rocket Launcher Datajack Katana [Rating: 35] Favorites ----------- Power Improved Ion Engine Engine Improved Ion Engine Power Core Nuclear Core Propulsion Wheel Treads Light Treads Leg Aluminum Leg Wheel Wheel Utility Huge Storage Unit Device Improved Heat Sink Storage Huge Storage Unit Processor Improved Targeting Computer Hackware Relay Coupler [Sentry] Protection Light Armor Plating Weapon Advanced Beam Cannon Energy Gun Medium Laser Energy Cannon Advanced Beam Cannon Ballistic Gun Improved Assault Rifle Ballistic Cannon Gauss Cannon Launcher Grenade Launcher Special Weapon Mining Laser Slashing Weapon Katana Special Melee Weapon Datajack Build | -11 -10 -10 -9 -9 -8 -8 -8 ------- Run | Yrd Mat Min Mat Min Mat Gar Sto Slots Evolved 4 | . . . 2 . 2 . . Power . | . . . . . . . . Propulsion 1 | . . . 1 . . . . Utility 3 | . . . 1 . 2 . . Weapon . | . . . . . . . . Parts Attached 194 | 7 26 2 33 17 42 47 20 Power 20 | 1 3 . 7 1 5 2 1 Engine 17 | 1 3 . 6 1 3 2 1 Core 3 | . . . 1 . 2 . . Reactor . | . . . . . . . . Propulsion 49 | 2 6 . 7 6 9 12 7 Treads 9 | . . . 1 . 1 5 2 Leg 9 | 2 1 . . . . 3 3 Wheel 31 | . 5 . 6 6 8 4 2 Hover . | . . . . . . . . Flight . | . . . . . . . . Utility 39 | 2 4 2 5 3 12 10 1 Device 23 | 1 2 1 4 2 7 6 . Storage 3 | 1 2 . . . . . . Processor 6 | . . 1 1 1 3 . . Hackware 3 | . . . . . . 3 . Protection 4 | . . . . . 2 1 1 Artifact . | . . . . . . . . Weapon 86 | 2 13 . 14 7 16 23 11 Energy Gun 14 | 1 7 . 5 . 1 . . Energy Cannon 14 | . . . 2 1 6 5 . Ballistic Gun 31 | 1 2 . 7 2 6 9 4 Ballistic Cannon 3 | . . . . . . 1 2 Launcher 12 | . . . . 2 3 3 4 Special Weapon 2 | . 2 . . . . . . Impact Weapon . | . . . . . . . . Slashing Weapon 7 | . 2 . . 1 . 3 1 Piercing Weapon . | . . . . . . . . Special Melee Weapon 3 | . . . . 1 . 2 . Unidentified Prototypes 4 | . . . 2 . 2 . . Parts Lost 38 | . 3 . 4 3 5 12 11 Power 2 | . . . . . . 1 1 Propulsion 16 | . 2 . 2 3 1 5 3 Utility 12 | . . . 2 . 3 3 4 Weapon 8 | . 1 . . . 1 3 3 Highest Loss Streak 7 | . 2 . 3 3 2 3 7 To Critical Strikes . | . . . . . . . . Average Slot Usage (%) 96 | . 97 100 95 99 97 93 96 Engine 9 | . 14 14 11 11 4 7 8 Treads 2 | . . . 3 . . 6 . Leg 6 | . 8 . . . . 10 21 Wheel 17 | . 17 28 26 32 26 7 4 Device 9 | . 13 12 10 7 13 8 . Storage 10 | . 14 14 11 11 9 9 9 Processor 11 | . . 1 10 14 13 18 17 Hackware 2 | . . . . . . 4 8 Protection 2 | . . . . . 6 3 7 Energy Gun 6 | . 21 14 8 . . . . Energy Cannon 4 | . . . 3 11 11 3 . Ballistic Gun 5 | . 5 . 9 4 5 5 6 Ballistic Cannon 1 | . . . . . . 3 5 Launcher 1 | . . . . 4 . 1 3 Slashing Weapon 1 | . . 14 . 1 . 3 1 Peak Build Rating 35 | 7 8 8 20 20 31 35 32 Average Rating 19 | 4 7 8 15 18 26 28 29 On Entrance 14 | . 7 8 8 19 20 27 29 Naked Turns . | . . . . . . . . Heaviest Build 109 | 13 88 88 93 96 104 109 107 Greatest Support 60 | 20 26 26 36 30 36 60 40 Greatest Overweight (x) 10 | . 8 3 9 4 5 10 10 Average Overweight (x) 2 | . 3 3 3 3 2 2 6 Largest Inventory Capacity 25 | 8 25 25 25 25 25 25 25 Average Capacity 23 | 5 20 25 25 25 25 25 25 Most Carried 25 | 3 14 14 25 25 25 25 25 Average Carried 18 | . 9 14 16 22 21 23 24 Final Capacity 25 | 8 25 25 25 25 25 25 25 Final Carried 25 | 3 14 14 22 23 24 25 21 Class Distribution -------------------- 69% | Scavenger-Mutant 24% | Mutant 6% | Bothacker-Mutant Dominant Class ---------------- Mutant | -10/Materials Scavenger-Mutant | -10/Mines Scavenger-Mutant | -9/Materials Scavenger-Mutant | -9/Mines Scavenger-Mutant | -8/Materials Scavenger-Mutant | -8/Garrison Scavenger-Mutant | -8/Storage Resources | -11 -10 -10 -9 -9 -8 -8 -8 ----------- Run | Yrd Mat Min Mat Min Mat Gar Sto Matter Collected 3363 | 282 422 . 505 340 641 749 424 Remotely 199 | . . . . . 199 . . Salvage Created 5850 | 98 1044 . 982 439 1248 1287 752 Parts 331 | 8 49 . 55 34 87 63 35 Haulers Intercepted 8 | . 1 . 4 . 3 . . Recyclers Shooed 8 | . 3 . 3 . 1 . 1 Parts Field Recycled . | . . . . . . . . Retrieved Matter . | . . . . . . . . Parts Self-Destructed . | . . . . . . . . Prevented . | . . . . . . . . Kills | -11 -10 -10 -9 -9 -8 -8 -8 ------- Run | Yrd Mat Min Mat Min Mat Gar Sto Combat Hostiles Destroyed 113 | . 15 . 14 13 27 30 14 Guns 42 | . 14 . 12 3 6 4 3 Cannons 36 | . . . 1 5 11 16 3 AOE 33 | . 1 . 1 5 10 8 8 Classes Destroyed 16 | 2 7 . 1 2 . 2 2 Worker 14 | . 4 . 3 1 4 . 2 Builder 5 | . 1 . 1 . 2 . 1 Tunneler 8 | 2 . . 2 4 . . . Hauler 8 | . 1 . 4 . 3 . . Recycler 14 | 1 5 . 3 . 2 . 3 Mechanic 1 | . . . . . . . 1 Operator 2 | . 1 . . . 1 . . Watcher 8 | . 3 . 4 . 1 . . Swarmer 36 | . 6 . 6 4 12 4 4 Cutter 2 | . . . . . . 2 . Grunt 54 | . 9 . 6 6 12 15 6 Duelist 3 | . . . . 2 . . 1 Protector 1 | . . . . . . . 1 Sentry 15 | . . . 2 . 3 8 2 Hunter 1 | . . . . . . 1 . Assembled 1 | . . . . 1 . . . Best Kill Streak 14 | 3 4 . 8 8 14 5 5 Combat Bots Only 8 | . 3 . 4 5 8 5 4 Max Kills in Single Turn 5 | 2 2 . 5 3 5 2 4 Gunslinging . | . . . . . . . . Exploded 4 | . 1 . 1 2 4 2 3 Melee . | . . . . . . . . Uniques/NPCs Destroyed . | . . . . . . . . Combat | -11 -10 -10 -9 -9 -8 -8 -8 -------- Run | Yrd Mat Min Mat Min Mat Gar Sto Hostile Shots Fired 508 | . 73 . 72 60 96 128 79 Missed 132 | . 16 . 22 19 30 28 17 Damage Taken 5187 | . 686 . 562 459 848 1514 1118 Core 943 | . 143 . 143 101 132 245 179 Absorbed by Shields 340 | . . . . . 52 288 . Regen/Repaired (Parts) 156 | . 65 . 42 . 49 . . Core Remaining (%) 60 | 100 . 42 . 39 . . . Volleys Fired 400 | 4 100 . 67 46 76 74 33 Largest 2 | 2 2 . 2 2 2 2 2 Hottest 136 | 70 100 . 130 91 136 136 73 Shots Fired 725 | 8 187 . 134 82 143 128 43 Gun 476 | 8 182 . 127 38 57 45 19 Cannon 215 | . . . 7 36 82 74 16 Launcher 29 | . . . . 8 4 9 8 Special 5 | . 5 . . . . . . Kinetic 280 | 4 33 . 56 38 57 57 35 Thermal 416 | 4 154 . 78 36 82 62 . Explosive 20 | . . . . 8 4 4 4 Electromagnetic 9 | . . . . . . 5 4 Robot Hit Streak 23 | 6 8 . 9 15 22 23 7 Robot Miss Streak 4 | 1 4 . 3 3 4 3 4 Penetration Max 1 | . . . . . . . 1 Secondary Targets 1 | . . . 1 . . . . Max Gunslinging Chain 1 | . . . 1 . . . . Shots Hit Robots 434 | 6 92 . 78 53 95 81 29 Core Hits 246 | 4 43 . 35 24 55 48 37 Critical Kills 5 | . . . 2 . . 3 . Critical Parts Destroyed 5 | . . . . 2 . 2 1 Critical Strikes 22 | . 6 . 5 2 . 7 2 Burn 9 | . 6 . 3 . . . . Meltdown 3 | . . . 1 . . 2 . Destroy 7 | . . . 1 2 . 3 1 Blast 3 | . . . . . . 2 1 Melee Attacks 25 | . 4 . . 7 . 14 . Impact . | . . . . . . . . Slashing 21 | . 4 . . 7 . 10 . Piercing . | . . . . . . . . Sneak Attacks 1 | . . . . . . 1 . Combat Hostiles . | . . . . . . . . Follow-up Attacks . | . . . . . . . . Damage Inflicted 10295 | 89 1413 . 1529 1217 2443 1976 1628 Guns 4182 | 89 1126 . 1035 475 662 492 303 Cannons 3114 | . . . 126 431 1193 1066 298 Explosions 2999 | . 287 . 368 311 588 418 1027 Melee . | . . . . . . . . Ramming . | . . . . . . . . Kinetic 3287 | 39 229 . 501 475 662 780 601 Thermal 4994 | 50 1184 . 1028 431 1193 852 256 Explosive 1498 | . . . . 311 588 193 406 Electromagnetic 516 | . . . . . . 151 365 Impact . | . . . . . . . . Slashing . | . . . . . . . . Piercing . | . . . . . . . . Highest Corruption 15 | . . . . . . 1 15 Average Corruption 1 | . . . . . . 1 1 Corruption Purged . | . . . . . . . . Corruption Blocked . | . . . . . . . . Effects 23 | . . . . . . 19 4 Message Errors 5 | . . . . . . 3 2 Matter Fused 7 | . . . . . . 6 1 Heat Flow Errors 3 | . . . . . . 3 . Energy Discharges 2 | . . . . . . 1 1 Parts Fused 1 | . . . . . . 1 . Data Loss (minor) 1 | . . . . . . 1 . Data Loss (major) 1 | . . . . . . 1 . Misfires 2 | . . . . . . 2 . Alerts 1 | . . . . . . 1 . Overload Shots . | . . . . . . . . Overflow Damage 293 | . 105 . 103 . 42 36 7 Projectiles 28 | . . . . . 28 . . Explosions 265 | . 105 . 103 . 14 36 7 Melee . | . . . . . . . . Knockbacks 7 | . . . . . . 3 4 Impact . | . . . . . . . . Kinetic 6 | . . . . . . 3 3 Secondary 1 | . . . . . . . 1 Self-Inflicted Damage 460 | . 98 . . 25 . 167 170 Shots 20 | . 2 . . 2 . 6 10 Rammed . | . . . . . . . . Targets Rammed . | . . . . . . . . Kicked . | . . . . . . . . Crushed . | . . . . . . . . Highest Temperature 384 | 36 93 . 282 266 384 315 93 Average Temperature 67 | 19 24 . 94 81 103 88 20 Received Heat Transfer 1935 | . 189 . 147 198 410 559 432 Effects 7 | . . . 1 . 2 4 . Energy Bleed 3 | . . . 1 . . 2 . Interference 4 | . . . . . 2 2 . Siege Activations . | . . . . . . . . Robots Corrupted . | . . . . . . . . Combat Hostiles . | . . . . . . . . Parts Fried 2 | . . . . . . 1 1 Impact Corruptions . | . . . . . . . . Robots Melted 4 | . 1 . 1 . . 2 . Combat Hostiles 2 | . . . . . . 2 . Parts Melted 27 | . 8 . 9 . 6 4 . Heat Transferred 10233 | 148 3346 . 2056 777 2146 1406 354 Parts Sabotaged . | . . . . . . . . Parts Stolen . | . . . . . . . . Parts Stripped . | . . . . . . . . Power Chain Reactions 9 | . . . . . . 4 5 Alert | -11 -10 -10 -9 -9 -8 -8 -8 ------- Run | Yrd Mat Min Mat Min Mat Gar Sto Peak Influence 2546 | 15 226 . 368 359 672 2546 1593 Initial 1240 | . 9 . . 115 . 436 1240 Average 663 | 4 68 . 198 156 270 1513 1386 Maximum Alert Level 5 | . 1 . 1 1 2 5 4 Low Security (%) 43 | 100 94 100 54 56 43 . . Level 1 15 | . 5 . 45 43 30 . . Level 2 4 | . . . . . 25 5 . Level 3 7 | . . . . . . 21 . Level 4 17 | . . . . . . 37 100 Level 5 11 | . . . . . . 35 . High Security . | . . . . . . . . Max Security . | . . . . . . . . Squads Dispatched 19 | . 2 . 1 . 7 . 9 Investigation 4 | . 1 . . . 2 . 1 Extermination . | . . . . . . . . Reinforcement 6 | . 1 . 1 . 3 . 1 Assault 4 | . . . . . . . 4 Garrison 5 | . . . . . 2 . 3 Intercept . | . . . . . . . . Searches Triggered . | . . . . . . . . Construction Impeded 2 | . . . . . 1 . 1 Haulers Reinforced . | . . . . . . . . Active Scanning Responses . | . . . . . . . . Cargo Convoy Interrupts . | . . . . . . . . Stealth | -11 -10 -10 -9 -9 -8 -8 -8 --------- Run | Yrd Mat Min Mat Min Mat Gar Sto Distress Signals 6 | . 2 . . . 3 . 1 Communications Jammed . | . . . . . . . . Distress Signals . | . . . . . . . . Times Spotted 168 | . 23 5 22 13 39 33 33 Peak Tracking Total 10 | . 4 8 4 4 5 6 10 Tactical Retreats 5 | . 1 . 1 . . 1 2 Traps | -11 -10 -10 -9 -9 -8 -8 -8 ------- Run | Yrd Mat Min Mat Min Mat Gar Sto Traps Triggered 9 | . 1 . 1 . 1 6 . Indirectly . | . . . . . . . . Trap Hack Attempts . | . . . . . . . . Triggered . | . . . . . . . . Disarmed . | . . . . . . . . Reprogrammed . | . . . . . . . . Reused . | . . . . . . . . Traps Extracted . | . . . . . . . . Installed . | . . . . . . . . Triggered . | . . . . . . . . Machines | -11 -10 -10 -9 -9 -8 -8 -8 ---------- Run | Yrd Mat Min Mat Min Mat Gar Sto Machines Disabled 25 | . 2 . 6 2 2 7 6 Max in Single Turn 4 | . 2 . 4 1 1 2 2 Garrison Relay 5 | . . . . . . 5 . Phase Generator 1 | . . . . . . 1 . Machines Repaired . | . . . . . . . . Machines Dismantled . | . . . . . . . . Machines Sabotaged . | . . . . . . . . Overloaded Fab Kills . | . . . . . . . . Hacking | -11 -10 -10 -9 -9 -8 -8 -8 --------- Run | Yrd Mat Min Mat Min Mat Gar Sto Machines Accessed 25 | . 8 . 5 . 7 4 1 Terminals 18 | . 6 . 4 . 4 4 . Fabricators . | . . . . . . . . Repair Stations 3 | . 1 . 1 . 1 . . Recycling Units 1 | . 1 . . . . . . Scanalyzers 1 | . . . . . 1 . . Garrison Access 2 | . . . . . 1 . 1 Total Hacks 71 | . 21 . 12 . 25 11 2 Successful 34 | . 11 . 5 . 16 . 2 Failed 37 | . 10 . 7 . 9 11 . Catastrophic 2 | . . . 1 . . 1 . Database Lockouts . | . . . . . . . . Manual 43 | . 12 . 7 . 17 6 1 Terminals 55 | . 17 . 10 . 17 11 . Fabricators . | . . . . . . . . Repair Stations 6 | . 2 . 2 . 2 . . Recycling Units 2 | . 2 . . . . . . Scanalyzers 4 | . . . . . 4 . . Garrison Access 4 | . . . . . 2 . 2 Terminal Hacks 7 | . 3 . 1 . 3 . . Record 1 | . 1 . . . . . . Prototype ID Bank 5 | . 1 . 1 . 3 . . Unreport Threat 1 | . 1 . . . . . . Fabricator Hacks . | . . . . . . . . Repair Station Hacks 6 | . 2 . 2 . 2 . . Scan Component 3 | . 1 . 1 . 1 . . Repair 3 | . 1 . 1 . 1 . . Recycling Unit Hacks 1 | . 1 . . . . . . Report Inventory 1 | . 1 . . . . . . Scanalyzer 4 | . . . . . 4 . . Insert Component 2 | . . . . . 2 . . Analyze 2 | . . . . . 2 . . Garrison Access Hacks 3 | . . . . . 2 . 1 Unlock Access 2 | . . . . . 1 . 1 Coupler Status 1 | . . . . . 1 . . Unauthorized Hacks 13 | . 5 . 2 . 5 . 1 Terminals 11 | . 4 . 2 . 5 . . Assimilate 1 | . 1 . . . . . . Botnet 9 | . 3 . 2 . 4 . . Operators 1 | . . . . . 1 . . Fabricators . | . . . . . . . . Repair Stations . | . . . . . . . . Recycling Units 1 | . 1 . . . . . . Reject 1 | . 1 . . . . . . Scanalyzers . | . . . . . . . . Garrison Access 1 | . . . . . . . 1 Reprogram 1 | . . . . . . . 1 Data Cores Recovered . | . . . . . . . . Used . | . . . . . . . . Hacking Detections 23 | . 7 . 5 . 6 4 1 Full Trace Events 9 | . 2 . 3 . 2 2 . Feedback Events . | . . . . . . . . Feedback Blocked . | . . . . . . . . Robot Schematics Acquired . | . . . . . . . . Robots Built . | . . . . . . . . Authchips . | . . . . . . . . Time . | . . . . . . . . Total Robot Build Rating . | . . . . . . . . Part Schematics Acquired 1 | . . . . . 1 . . Parts Built . | . . . . . . . . Authchips . | . . . . . . . . Time . | . . . . . . . . Total Part Build Rating . | . . . . . . . . Parts Repaired 3 | . 1 . 1 . 1 . . Time 109 | . 26 . 51 . 32 . . Parts Recycled . | . . . . . . . . Recycled Matter . | . . . . . . . . Retrieved Matter . | . . . . . . . . Retrieved Components . | . . . . . . . . Parts Scanalyzed 2 | . . . . . 2 . . Part Schematics Acquired 1 | . . . . . 1 . . Parts Damaged . | . . . . . . . . Bothacking | -11 -10 -10 -9 -9 -8 -8 -8 ------------ Run | Yrd Mat Min Mat Min Mat Gar Sto Used RIF Installer 1 | . . . . . . 1 . Robots Hacked 2 | . . . . . . 2 . Non-combat . | . . . . . . . . Combat 2 | . . . . . . 2 . Robot Hacks Applied 2 | . . . . . . 2 . reboot_system 1 | . . . . . . 1 . formatsys_high 1 | . . . . . . 1 . Relay Couplers Released 21 | . . . . . . 21 . Machine Destruction 21 | . . . . . . 21 . Attached 3 | . . . . . . 3 . Fabnet Peak Effective % . | . . . . . . . . Robots Rewired . | . . . . . . . . Allies Hacked . | . . . . . . . . Hacks Repelled . | . . . . . . . . Allies | -11 -10 -10 -9 -9 -8 -8 -8 -------- Run | Yrd Mat Min Mat Min Mat Gar Sto Total Allies 10 | . 1 1 . 3 . 1 4 Largest Group 3 | . 1 1 . 3 3 1 2 Highest-Rated Group 62 | . 10 31 . 40 40 21 62 Highest-Rated Ally 31 | . 10 31 . 16 16 21 31 Total Orders . | . . . . . . . . Ally Attacks 88 | . . . . 5 64 8 11 Total Damage 1094 | . . . . 65 640 191 198 Kills 14 | . . . . 1 10 2 1 Allies Corrupted . | . . . . . . . . Allies Melted . | . . . . . . . . Intel | -11 -10 -10 -9 -9 -8 -8 -8 ------- Run | Yrd Mat Min Mat Min Mat Gar Sto Robot Analysis Total . | . . . . . . . . Derelict Logs Recovered 2 | . . 1 . 1 . . . Drone Launches . | . . . . . . . . Drone Recoveries . | . . . . . . . . Exploration | -11 -10 -10 -9 -9 -8 -8 -8 ------------- Run | Yrd Mat Min Mat Min Mat Gar Sto Turns Passed 9673 | 76 2188 316 1012 1250 1112 3240 479 Spaces Moved 4802 | 46 1228 224 530 826 586 1230 132 Core 5 | 5 . . . . . . . Treads 288 | . . . . . . 285 3 Legs 762 | 41 301 . . . . 367 53 Wheels 3747 | . 927 224 530 826 586 578 76 Hover . | . . . . . . . . Flight . | . . . . . . . . Fastest Speed 50 | 50 80 135 110 125 116 116 215 Average Speed 161 | 112 143 135 134 125 120 229 270 Slowest Speed 750 | 120 200 135 215 140 155 750 480 Overloaded Moves . | . . . . . . . . Propulsion Burnouts . | . . . . . . . . Robots Hopped . | . . . . . . . . Cave-ins Triggered . | . . . . . . . . Exploration Rate (%) 56 | 4 91 48 40 93 54 99 22 Regions Visited 7 Branch Regions 3 Pre-discovered Areas 1 | . . 1 . . . . . Known Exits Taken 3 | . . 1 . 1 1 . . Unknown Exits Taken 3 | 1 1 . 1 . . . . Scrap Searched 2 | . . . . 2 . . . Spaces Dug 57 | . 8 . . 31 8 6 4 Terrain Destroyed 291 | . 47 . 22 51 32 104 35 Melee 4 | . 3 . . . . 1 . Projectile 16 | . 5 . . 1 . 2 8 AOE 271 | . 39 . 22 50 32 101 27 Terrain Rammed . | . . . . . . . . Walls Destroyed . | . . . . . . . . Machines Disabled . | . . . . . . . . Actions | -11 -10 -10 -9 -9 -8 -8 -8 --------- Run | Yrd Mat Min Mat Min Mat Gar Sto Total 5927 | 59 1444 236 694 947 838 1498 211 Wait 342 | . 60 11 27 39 109 89 7 Move 4795 | 45 1227 223 529 825 585 1229 132 Hop . | . . . . . . . . Pick Up 81 | 3 15 . 17 6 11 21 8 Fast Attach 47 | 7 9 . 14 1 6 9 1 Attach 39 | . 3 . 7 3 7 14 5 Detach 9 | . . . 4 . 1 3 1 Swap 108 | . 14 2 12 13 29 24 14 Drop 76 | . 12 . 17 7 14 16 10 Fire 400 | 4 100 . 67 46 76 74 33 Melee 25 | . 4 . . 7 . 14 . Ram . | . . . . . . . . Kick . | . . . . . . . . Crush . | . . . . . . . . Escape Stasis 5 | . . . . . . 5 . Rewire . | . . . . . . . . Trap . | . . . . . . . . Miscellaneous . | . . . . . . . . Route ------- -11/Scrapyard -10/Materials (discovered 5 exits: *Mat x3 / [*Min] / [*Sub]) -10/Mines -9/Materials (discovered 2 exits: *Mat / [*Min]) -9/Mines -8/Materials (discovered 3 exits: [*Fac] / Sto / Gar) -8/Garrison (discovered 4 exits: *Sto x4) -8/Storage (discovered 1 exit: Gar) History --------- Turn | Location | Event 5 | -11/Scrapyard | Discovered new exit (range 15) 77 | -11/Scrapyard | Entered Materials 80 | -10/Materials | Discovered new exit (range 15) 305 | -10/Materials | Build established: Mutant 332 | -10/Materials | Discovered new exit (range 8) 772 | -10/Materials | Discovered new exit (range 4) 1166 | -10/Materials | Core integrity fell below 50% 1198 | -10/Materials | Discovered new exit (range 11) 1389 | -10/Materials | Repaired Med. Laser 1713 | -10/Materials | Discovered new exit (range 9) 2101 | -10/Materials | Build established: Scavenger-Mutant 2265 | -10/Materials | Entered Mines 2268 | -10/Mines | Received a Mining Laser from a helpful Derelict 2537 | -10/Mines | Discovered new exit (range 10) 2552 | -10/Mines | Identified exit to Materials 2560 | -10/Mines | Learned location of Storage (-8) 2565 | -10/Mines | Assembled infested the area 2570 | -10/Mines | Assisted by a Guerilla fighting off Assembled 2581 | -10/Mines | Entered Materials 2581 | -9/Materials | Evolved 2 slots: Propulsion x1, Utility x1 2768 | -9/Materials | Lost 3 parts (2n1u) 3159 | -9/Materials | Discovered new exit (range 16) 3340 | -9/Materials | Repaired Imp. Assault Rifle? 3397 | -9/Materials | Discovered new exit (range 4) 3593 | -9/Materials | Entered Mines 3606 | -9/Mines | Discovered new exit (range 5) 3612 | -9/Mines | Identified exit to Materials 3865 | -9/Mines | Core integrity fell below 50% 3921 | -9/Mines | Excavation squad dispatched 3921 | -9/Mines | A large section of the Mines collapsed 4038 | -9/Mines | Lost 3 parts (3n) 4120 | -9/Mines | Assisted by bots powering up and referring to "LRC-V3" 4843 | -9/Mines | Entered Materials 4843 | -8/Materials | Accompanied by 3 allies 4843 | -8/Materials | Evolved 2 slots: Utility x2 4844 | -8/Materials | Identified exit to Storage 4887 | -8/Materials | Repaired Imp. Ion Engine 5106 | -8/Materials | Discovered new exit (range 10) 5409 | -8/Materials | Garrison activated, responded to threat 5693 | -8/Materials | Destroyed 8 combat bots 5919 | -8/Materials | Garrison activated, responded to threat 5954 | -8/Materials | Identified exit to Garrison 5955 | -8/Materials | Entered Garrison 6001 | -8/Garrison | Triggered checkpoint 6036 | -8/Garrison | Garrison Relay disabled 6054 | -8/Garrison | Phase Generator disabled 6379 | -8/Garrison | Triggered checkpoint 6517 | -8/Garrison | Triggered checkpoint 6553 | -8/Garrison | Installed Relay Interface Framework 6587 | -8/Garrison | Garrison Relay disabled 6674 | -8/Garrison | Garrison Relay disabled 6734 | -8/Garrison | Discovered exit to Storage (range 10) 6771 | -8/Garrison | Triggered checkpoint 6833 | -8/Garrison | Triggered checkpoint 6867 | -8/Garrison | Garrison Relay disabled 6905 | -8/Garrison | Triggered checkpoint 6942 | -8/Garrison | Discovered exit to Storage (range 3) 6972 | -8/Garrison | Core integrity fell below 50% 7090 | -8/Garrison | Lost 3 parts (1p1n1u) 7254 | -8/Garrison | Discovered exit to Storage (range 9) 7418 | -8/Garrison | Build established: Bothacker-Mutant 7777 | -8/Garrison | Discovered exit to Storage (range 10) 7818 | -8/Garrison | Build established: Scavenger-Mutant 7932 | -8/Garrison | Lost 3 parts (1n1u1w) 8261 | -8/Garrison | Garrison Relay disabled 8405 | -8/Garrison | Triggered checkpoint 9195 | -8/Garrison | Entered Storage 9316 | -8/Storage | Met a pair of Derelict thieves 9358 | -8/Storage | Garrison activated, responded to threat 9399 | -8/Storage | Core integrity fell below 20% 9488 | -8/Storage | Identified exit to Garrison 9595 | -8/Storage | First assault squad dispatched 9663 | -8/Storage | System corruption reached 10% 9674 | -8/Storage | Destroyed by G-47 Trooper with Particle Gun Last Messages --------------- 09662_ System corrupted by crushing effect (+5). 09664_ G-47 Trooper destroyed. 09664_ Destroyed Lgt. Ion Engine. 09664_ K-01 Serf destroyed. 09664_ Chain reaction triggered in Corrupted Lgt. Ion Engine. 09665_ Acquired 15 matter. 09665_ Wheel destroyed. 09665_ System corrupted by crushing effect (+1). 09666_ Critical hit (Burn: +37). 09667_ C-30 ARC bursts open, deploying its payload. 09667_ G-50 Soldier unfolds itself. 09667_ L-31 Rogue unfolds itself. 09667_ B-36 Bruiser unfolds itself. 09667_ L-31 Rogue unfolds itself. 09668_ Grenade Launcher destroyed. 09668_ System corrupted by crushing effect (+1). 09668_ B-36 Bruiser destroyed. 09670_ O,V#W%S% GT RVHHDS&79DCX2EW7:,I/ 09670_ Lgt. Treads destroyed. 09672_ Adv. EMP Blaster destroyed. Map ----- +----------------------------------------------------+ | ???????????????????????????????????????????? | | ???????????????????????????????????????????? | | ???????????????????????????????????????????? | | ???????????????????????????????????????????? | | ???????????????????????????????????????????? | | ???????????????????????????????????????????? | | ???????????????????????????????????????????? | | ???????????????????????????????????????????? | | ???????????????????????????????????????????? | | ???????????????????????????????????????????? | | ???????????????????????????????????????????? | | ?????????????????? "T ?????????????????????? | | ?????????????????? ?#####?###???????????? | | ?????????????????? ?# ? #???????????? | | ??????????????????# ?# """ +???????????? | | ??????????????????# ?# m""" #???????????? | | ??????????????????# ?# """ #???????????? | | ??????????????????# ## #???????????? | | ??????????????????# ## """%#???????????? | | ??????????????????# ## """ ######## #??? | | ??????????????????# ## b""" + #??? | | ??????????????????# ## %w######## #??? | | ??????????????????# ## g=g #???????????? | | ?????????????????## ## =l/ #?######????? | | ?????????????????# #;=l=%# ## #????? | | ?????????????????# % @i%!= #????? | | ?????????????????# g[= #????? | | ?????????????????# a %g g #????? | | ?????????????????# ### ## #????? | | ?????????????????## %############ ##????? | | ?????????????????## ## # #?????? | | ?????????????????## ## ] # #?????? | | ??????????????????# ## ] # #?????? | | ???????????##?????# ## + +?????? | | ???????????# #????# ## / # #?????? | | ###################% ## # #?????? | | % %% % ## % # #?????? | | % =% + ! # #?????? | | % %* % ############ #?????? | | ???+#########+######+##??????????#####?????? | | ??????# ##% [##???????????????????? | | ??????# ##! [=%#???????????????????? | | ??????#[% *""" ###%% ###??????????????????? | | ??????# =="""" ## == #??????????????????? | | ??????# """" ## = ]]#??????????????????? | | ??????# """" ##] ] #??????????????????? | | ??????# ##] ] ]#??????????????????? | | ??????#= #########??????????????????? | | ??????###">"#####??????????????????????????? | | ????????#"G"#??????????????????????????????? | +----------------------------------------------------+ Best States ------------- Heat Dissipation 45 Energy Generation 18 Energy Capacity 310 Matter Stores 300 Matter Capacity 300 Sight Range 18 Robot Scan Range 14 Terrain Scan Range 16 Terrain Scan Density 10 Armor Coverage 150 Evasion (%) 55 Targeting Accuracy 6 Target Analysis 5 Recoil Reduction 3 Relay Coupler Types 2 Relay Coupler Value 39 Item Schematics ----------------- Rocket Launcher | -8/Materials | Scanalyzed Robot Schematics ------------------ None Fabricated ------------ Nothing Alien Tech Used ----------------- None Achievements -------------- None Challenges ------------ None Game ------ Seed DisruptionMomentumLog Manual? 0 Play Time 01:41:08 Cumulative 214.5 hours Start 2024.12.15 @ 17:34:04 End 2024.12.15 @ 19:44:22 Sessions 1 Manual Loads 0 Difficulty Rogue Special Mode None Game No. 62 Rogue 62 Adventurer 0 Explorer 0 Win Type - Total 0 Types 0/0/0/0/0/0/0/0/0 Lore% 25 Gallery% 54 Achievement% 45 Wizard Run 0 Options --------- Layout 0 ASCII 0 Keyboard 0 Movement Mouse Keybinds 0 Fullscreen 1 Font 36/Smallcaps Map View 76x50 Zoom Use 0% Tactical HUD 1 Map Filters NONE Filters NONE Steam X RUN: d1d89eb0-ebc2-4c1f-bc9d-6335bb052e80